bitfinex/quotes_ETHUSD_20250519
["timestamp","ask_amount","ask_price","bid_price","bid_amount"]
[1747677011421,3.97213322,2517.6,2517.2,8.364]
[1747677012054,3.97191344,2517.7,2517.3,8.0]
[1747677012452,3.97191344,2517.7,2517.4,0.9291]
[1747677012957,3.97109046,2518.2,2517.4,0.9291]
[1747677013156,3.97211616,2517.6,2517.5,8.359]
[1747677013833,3.97157106,2517.9,2517.5,8.359]
[1747677014039,3.97172612,2517.8,2517.5,8.359]
[1747677014572,4.74945123,2518.3,2517.6,11.97201451]
[1747677014573,0.7785,2518.3,2517.6,11.97201451]
[1747677014729,3.97125377,2518.1,2517.6,25.148]
[1747677014929,3.97045977,2518.6,2517.6,29.11993471]
[1747677015129,3.97179919,2517.8,2517.6,25.148]
[1747677015436,3.97077509,2518.4,2517.6,25.148]
[1747677015640,3.97135411,2518.1,2517.6,25.148]
[1747677015842,3.97126377,2518.1,2517.6,32.96078652]
[1747677016027,3.97153487,2518.0,2517.6,28.98883646]
[1747677016374,3.97127575,2518.1,2517.6,32.96083787]
[1747677016375,3.97138727,2518.1,2517.6,32.96083787]
[1747677016673,0.55,2518.6,2517.6,25.148]
[1747677016867,3.97181757,2517.8,2517.6,25.148]
[1747677017173,3.97103463,2518.3,2517.8,8.0]
[1747677017360,3.97086069,2518.4,2517.7,12.89404379]
[1747677017562,3.97073274,2518.5,2517.7,12.89404379]
[1747677017563,3.97094436,2518.3,2517.8,6.97582185]
[1747677018076,0.7785,2518.7,2518.0,8.0]
[1747677018249,3.97055455,2518.6,2518.2,8.0]
[1747677018457,3.97055455,2518.6,2518.2,13.954]
[1747677018763,0.7785,2519.3,2518.3,4.91246848]
[1747677018936,3.96951413,2519.2,2518.3,0.9416]
[1747677019141,3.97045977,2518.6,2518.5,8.0]
[1747677019383,3.97067316,2518.5,2518.3,0.9416]
[1747677019548,3.97045977,2518.6,2518.5,8.0]
[1747677019549,3.97052843,2518.6,2518.5,8.0]
[1747677020243,3.97052843,2518.6,2518.5,16.358]
[1747677020440,3.97052843,2518.6,2420.8,1.22159091]
[1747677020441,3.97061743,2518.5,2517.4,0.9]
[1747677020640,0.04917488,2518.4,2517.5,8.358]
[1747677020875,3.97180167,2517.8,2517.5,10.9984]
[1747677021076,3.97164181,2517.9,2517.6,8.0]
[1747677021452,3.97154888,2518.0,2517.6,8.0]
[1747677021951,3.97080477,2518.4,2517.6,8.0]
[1747677022158,3.97187909,2517.7,2517.6,8.0]
[1747677022356,3.97219463,2517.5,2517.4,0.9]
[1747677022758,3.97235242,2517.4,2517.3,17.146]
[1747677023084,3.97235242,2517.4,2517.3,25.504]
[1747677023292,3.97235242,2517.4,2517.3,17.146]
[1747677023441,3.97235242,2517.4,2517.3,25.505]
[1747677024855,3.97232058,2517.5,2517.3,25.505]
[1747677025170,3.97235242,2517.4,2517.3,25.146]
[1747677025348,3.97235242,2517.4,2517.3,25.505]
[1747677025758,3.97235242,2517.4,2517.3,17.146]
[1747677025970,4.75085242,2517.4,2517.3,17.146]
[1747677026142,5.30085242,2517.4,2517.3,17.146]
[1747677026357,5.30085242,2517.4,2516.4,6.853]
[1747677026358,3.97377309,2516.5,2516.4,0.9]
[1747677026597,3.97377309,2516.5,2516.4,8.359]
[1747677026803,3.97393101,2516.4,2516.3,17.146]
[1747677027097,3.97393101,2516.4,2516.3,25.505]
[1747677027269,0.7175,2517.0,2516.3,28.9532]
[1747677027455,3.97343504,2516.8,2516.4,8.0]
[1747677027644,3.97314725,2516.9,2516.4,11.97386725]
[1747677027985,3.97314866,2516.9,2516.5,8.0]
[1747677028166,3.9733061,2516.8,2516.5,8.0]
[1747677028587,4.02241445,2517.2,2516.5,8.0]
[1747677028588,3.97361519,2516.6,2516.5,8.0]
[1747677028760,3.97393101,2516.4,2516.3,18.0437]
[1747677028945,3.97386718,2516.5,2516.3,26.4027]
[1747677029148,3.97393101,2516.4,2516.3,34.4027]
[1747677029349,4.69060901,2517.0,2516.3,34.4027]
[1747677029583,8.07219865,2517.6,2516.3,34.4027]
[1747677029584,3.97348241,2516.7,2516.4,8.0]
[1747677029786,3.97326961,2516.9,2516.4,11.97390076]
[1747677030091,3.97298592,2517.0,2516.5,3.97369793]
[1747677030674,3.97266804,2517.2,2516.5,3.97377309]
[1747677030991,3.97266804,2517.2,2516.8,0.9522]
[1747677031165,3.97266804,2517.2,2516.9,8.36]
[1747677031354,3.97254219,2517.3,2517.0,8.0]
[1747677031355,3.97260923,2517.3,2517.0,8.0]
[1747677031549,3.97244065,2517.4,2517.0,8.0]
[1747677031789,0.46976389,2518.4,2517.0,12.10007397]
[1747677031964,3.97196231,2517.7,2517.1,8.9522]
[1747677032172,4.02181818,2517.6,2517.2,16.361]
[1747677032356,0.55,2518.2,2517.2,8.361]
[1747677032557,3.97238017,2517.4,2517.2,8.361]
[1747677032782,3.97248773,2517.4,2517.2,8.361]
[1747677033011,3.97031461,2518.7,2517.3,17.151]
[1747677033309,3.97116387,2518.2,2517.8,8.0]
[1747677033607,0.33129383,2518.1,2517.9,8.361]
[1747677034186,4.30255107,2518.1,2517.9,8.361]
[1747677034408,3.97140587,2518.0,2517.9,8.0]
[1747677034614,3.97140587,2518.0,2517.9,16.361]
[1747677034978,3.97140587,2518.0,2517.9,8.361]
[1747677035310,0.33129383,2518.1,2517.9,8.361]
[1747677035614,3.97140587,2518.0,2517.9,8.361]
[1747677035809,3.97187909,2517.7,2517.6,0.9245]
[1747677036138,3.97235242,2517.4,2517.3,26.108]
[1747677036425,3.97235242,2517.4,2517.3,25.511]
[1747677037611,3.97213398,2517.6,2517.3,25.511]
[1747677037812,8.62064249,2518.6,2517.3,25.511]
[1747677037813,3.97191596,2517.7,2517.4,8.0]
[1747677038107,3.97165103,2517.9,2517.5,0.8991]
[1747677038611,10.14,2518.7,2517.6,11.97195387]
[1747677038814,4.43991696,2518.8,2517.6,11.97195387]
[1747677038815,3.97116561,2518.2,2517.7,3.97187026]
[1747677039117,3.97136563,2518.1,2517.9,8.0]
[1747677039290,1.04879383,2518.6,2517.9,8.0]
[1747677039485,3.97077509,2518.4,2517.5,0.8991]
[1747677039712,3.97169536,2517.9,2517.6,16.36]
[1747677039919,3.97172134,2517.8,2517.5,0.8991]
[1747677040128,3.97180844,2517.8,2517.6,8.36]
[1747677040542,3.97169536,2517.9,2517.6,8.36]
[1747677040722,0.7175,2518.6,2517.6,18.68131]
[1747677041034,3.97121112,2518.2,2517.7,11.97181211]
[1747677041247,0.7175,2518.6,2517.7,8.0]
[1747677041402,3.97145137,2518.0,2517.7,8.0]
[1747677042130,0.7175,2518.6,2517.7,8.0]
[1747677042306,11.15279722,2519.2,2517.9,3.9714956]
[1747677042307,3.97097608,2518.3,2517.9,3.9714956]
[1747677042509,3.97097608,2518.3,2518.0,0.877]
[1747677042705,3.97110268,2518.2,2518.1,8.36]
[1747677043431,3.97112914,2518.2,2518.1,8.357]
[1747677043643,3.97109046,2518.2,2518.1,8.357]
[1747677043809,10.14,2518.8,2518.1,8.357]
[1747677043810,3.97089276,2518.4,2518.1,8.357]
[1747677044139,0.7175,2518.9,2518.2,8.877]
[1747677044510,3.9704762,2518.6,2518.3,17.148]
[1747677044734,3.97041247,2518.7,2518.4,8.0]
[1747677045238,3.97011302,2518.9,2518.4,8.0]
[1747677045440,3.96941603,2519.3,2518.8,4.91408609]
[1747677045734,4.43886284,2519.5,2518.9,8.357]
[1747677045935,3.96976159,2519.1,2518.9,8.357]
[1747677046310,0.46976389,2519.5,2519.0,8.0]
[1747677046500,0.46976389,2519.5,2519.3,8.9186]
[1747677046824,4.43880536,2519.5,2519.4,17.148]
[1747677047336,3.96904147,2519.5,2519.4,25.505]
[1747677047637,3.96904147,2519.5,2519.4,17.148]
[1747677047826,4.68654147,2519.5,2519.4,17.148]
[1747677048735,3.96904147,2519.5,2519.4,17.148]
[1747677049394,3.96904147,2519.5,2519.4,25.503]
[1747677049708,3.96904147,2519.5,2519.4,17.148]
[1747677049910,0.7175,2519.4,2518.6,17.145]
[1747677050134,3.97014451,2518.8,2518.7,8.354]
[1747677050837,3.96992701,2519.0,2518.7,8.354]
[1747677051135,3.96911166,2519.5,2518.7,8.354]
[1747677051300,3.96998382,2519.0,2518.7,8.354]
[1747677051696,4.68626358,2519.7,2518.7,15.27117703]
[1747677051697,3.9695529,2519.2,2518.7,15.27117703]
[1747677051939,3.96972887,2519.1,2518.7,11.30095249]
[1747677052238,3.96979025,2519.1,2518.7,8.354]
[1747677052534,3.96975513,2519.1,2518.7,8.354]
[1747677052915,3.96978763,2519.1,2518.7,8.354]
[1747677053138,3.96986566,2519.0,2518.7,8.354]
[1747677053341,3.97014451,2518.8,2518.7,16.354]
[1747677054017,3.97005576,2518.9,2518.7,16.354]
[1747677054217,3.97014451,2518.8,2518.7,8.0]
[1747677054540,4.68623841,2519.7,2518.7,16.354]
[1747677054732,0.7175,2519.7,2518.7,20.2991]
[1747677054907,3.96982932,2519.0,2518.7,20.2991]
[1747677055102,3.96982932,2519.0,2518.7,16.354]
[1747677055311,3.9695901,2519.2,2518.7,20.3242923]
[1747677055511,3.96967793,2519.1,2518.7,16.354]
[1747677055713,3.97014451,2518.8,2518.7,8.0]
[1747677055919,3.97014451,2518.8,2518.7,16.354]
[1747677056982,3.96888394,2519.6,2518.8,0.9537]
[1747677057137,0.04962066,2519.6,2518.8,0.9537]
[1747677057454,3.96986309,2519.0,2518.9,8.353]
[1747677058219,3.96998689,2518.9,2518.8,0.9537]
[1747677058467,3.96998689,2518.9,2518.8,8.353]
[1747677059748,3.97014451,2518.8,2518.7,8.0]
[1747677060049,3.97014451,2518.8,2518.7,16.353]
[1747677060563,3.97014451,2518.8,2518.7,8.0]
[1747677060763,3.97014451,2518.8,2518.7,16.353]
[1747677061668,3.97014451,2518.8,2518.7,8.353]
[1747677064066,3.96988683,2519.0,2518.7,8.353]
[1747677064272,3.9700549,2518.9,2518.7,8.353]
[1747677064473,3.97014451,2518.8,2518.7,8.353]
[1747677065577,3.97140587,2518.0,2517.9,0.44290246]
[1747677065739,3.97140587,2518.0,2517.9,8.79590246]
[1747677066070,3.97122247,2518.2,2517.9,0.44290246]
[1747677066386,0.7067,2518.6,2518.0,8.353]
[1747677066531,4.67668689,2518.9,2518.0,10.94659025]
[1747677066735,3.97014451,2518.8,2518.1,0.9334]
[1747677066937,3.97091435,2518.4,2518.1,0.9334]
[1747677067180,3.97093997,2518.3,2518.1,0.9334]
[1747677067483,3.97072336,2518.5,2518.1,0.9334]
[1747677067786,3.97078673,2518.4,2518.1,2.00038512]
[1747677067982,3.97076177,2518.5,2518.1,2.00038512]
[1747677068163,3.97084558,2518.4,2518.1,2.00038512]
[1747677068336,10.14,2519.1,2518.1,2.00038512]
[1747677068337,3.97052947,2518.6,2518.1,2.00038512]
[1747677068537,3.97052947,2518.6,2518.2,5.26575452]
[1747677068982,0.7067,2519.2,2518.3,3.97085179]
[1747677069274,3.97027363,2518.8,2518.3,3.97090757]
[1747677069839,3.97046272,2518.6,2518.2,5.22556534]
[1747677070175,3.97046272,2518.6,2518.3,14.305]
[1747677070582,3.97002947,2518.9,2518.3,22.02323029]
[1747677070892,3.97033474,2518.7,2518.3,22.02323029]
[1747677071479,3.96992376,2519.0,2518.6,0.8977]
[1747677071785,3.97005478,2518.9,2518.6,0.8977]
[1747677072097,3.96919901,2519.4,2518.6,0.8977]
[1747677072301,3.97017722,2518.8,2518.7,8.354]
[1747677072445,3.97017722,2518.8,2518.1,0.44290246]
[1747677072446,3.97045977,2518.6,2518.5,8.354]
[1747677072648,3.97109046,2518.2,2518.1,0.44290246]
[1747677072894,3.97109046,2518.2,2518.1,8.78990246]
[1747677073189,3.97109046,2518.2,2518.1,0.44290246]
[1747677074247,3.9715636,2517.9,2517.8,17.14]
[1747677074447,3.9715636,2517.9,2517.8,25.488]
[1747677074901,3.97251022,2517.3,2517.2,0.44290246]
[1747677075491,4.72887309,2517.3,2517.2,0.44290246]
[1747677075695,4.67921022,2517.3,2517.2,0.44290246]
[1747677076289,3.97251022,2517.3,2517.2,0.44290246]
[1747677076691,3.97245692,2517.4,2517.2,0.44290246]
[1747677076976,3.97251022,2517.3,2517.2,0.44290246]
[1747677077144,3.97251022,2517.3,2517.1,0.9396]
[1747677077341,3.97298371,2517.0,2516.9,8.348]
[1747677077982,3.97189884,2517.7,2516.9,8.348]
[1747677077983,3.97265353,2517.3,2516.9,8.348]
[1747677078185,0.7067,2517.8,2517.0,8.8348]
[1747677078369,3.971818,2517.8,2517.3,4.91208378]
[1747677078561,3.97191592,2517.7,2517.4,8.349]
[1747677078757,3.97169504,2517.9,2517.5,8.0]
[1747677079067,3.97146644,2518.0,2517.5,8.0]
[1747677079274,3.97174569,2517.8,2517.5,8.0]
[1747677080485,0.46976389,2519.1,2517.5,11.84695141]
[1747677080486,0.7067,2518.5,2517.5,11.84695141]
[1747677080654,4.67732524,2518.5,2517.7,8.0]
[1747677080850,3.97121109,2518.2,2517.7,11.97182002]
[1747677081051,4.67734999,2518.5,2517.7,8.0]
[1747677081358,3.97083034,2518.4,2517.9,3.97144022]
[1747677081567,3.9715636,2517.9,2517.8,0.9451]
[1747677081765,3.97156143,2518.0,2517.7,8.349]
[1747677081996,3.97172134,2517.8,2517.4,17.145]
[1747677082298,3.97219463,2517.5,2517.4,17.145]
[1747677082459,3.97219463,2517.5,2517.4,25.494]
[1747677083001,3.97219463,2517.5,2517.4,25.495]
[1747677083198,3.97216361,2517.6,2517.4,25.495]
[1747677083399,3.97219463,2517.5,2517.4,25.495]
[1747677084192,3.97219463,2517.5,2517.4,17.145]
[1747677084399,3.97235242,2517.4,2517.3,0.06348605]
[1747677085318,4.57201241,2517.4,2517.3,0.06348605]
[1747677085704,5.27871241,2517.4,2517.3,0.06348605]
[1747677086016,3.97377309,2516.5,2516.4,0.44290246]
[1747677086441,0.55,2517.3,2516.4,1.38154206]
[1747677086709,3.97339281,2516.8,2516.4,1.38154206]
[1747677086912,3.97330675,2516.8,2516.4,0.9386396]
[1747677087117,3.97368724,2516.6,2516.4,0.9386396]
[1747677087412,3.97295254,2517.1,2516.4,0.9386396]
[1747677087413,3.97356091,2516.7,2516.4,0.9386396]
[1747677087615,3.97308992,2517.0,2516.4,8.9386396]
[1747677087912,0.29867598,2517.6,2516.6,0.921]
[1747677088112,3.97285638,2517.1,2516.6,4.8945309]
[1747677088278,3.97273999,2517.2,2516.7,3.97344958]
[1747677088476,0.99977053,2517.8,2516.8,8.351]
[1747677088675,0.04965792,2517.7,2516.8,8.351]
[1747677088920,3.97282587,2517.1,2516.8,8.351]
[1747677089145,3.97314156,2516.9,2516.8,8.0]
[1747677089327,0.04965969,2517.1,2516.3,3.97400844]
[1747677089328,3.97361519,2516.6,2516.3,0.921]
[1747677089645,3.9734573,2516.7,2516.6,8.352]
[1747677090433,3.97332574,2516.8,2516.0,0.9655]
[1747677090635,3.97377309,2516.5,2516.4,8.352]
[1747677091338,3.97377309,2516.5,2515.6,0.44290246]
[1747677091339,0.55,2516.4,2515.6,0.44290246]
[1747677091540,3.97503676,2515.7,2515.6,0.44290246]
[1747677092651,3.97493448,2515.8,2515.6,0.44290246]
[1747677092941,3.97476468,2515.9,2515.6,0.44290246]
[1747677092942,3.97480392,2515.9,2515.6,0.44290246]
[1747677093142,0.04968632,2516.3,2515.6,0.44290246]
[1747677093348,0.04968632,2516.3,2515.4,8.0]
[1747677093349,3.97488184,2515.8,2515.4,8.0]
[1747677093504,3.97362676,2516.6,2515.5,2.0327585]
[1747677093704,3.97408894,2516.3,2515.4,8.0]
[1747677094101,3.97447831,2516.1,2515.6,3.97514303]
[1747677094345,3.97449812,2516.1,2515.5,3.97520125]
[1747677094645,0.04968355,2516.4,2515.4,8.0]
[1747677094843,3.9744174,2516.1,2515.5,3.97527632]
[1747677095008,3.97445753,2516.1,2515.6,5.5701421]
[1747677095407,3.97456346,2516.0,2515.6,1.59507445]
[1747677095621,3.97395999,2516.4,2515.8,0.9038]
[1747677095828,8.7054,2517.0,2515.9,8.354]
[1747677095829,3.97456279,2516.0,2515.9,8.354]
[1747677096040,3.97447484,2516.1,2515.8,0.9038]
[1747677096347,3.97448831,2516.1,2515.9,8.354]
[1747677096517,3.97448831,2516.1,2515.8,0.9038]
[1747677096736,3.97448831,2516.1,2516.0,8.354]
[1747677097157,3.97429956,2516.2,2516.0,8.354]
[1747677097455,3.97440483,2516.1,2516.0,8.354]
[1747677099042,10.14,2516.8,2516.0,9.27978]
[1747677099265,3.97342327,2516.8,2516.1,4.09407226]
[1747677099463,0.7054,2517.4,2516.6,3.97355186]
[1747677099650,3.9729316,2517.1,2516.7,8.355]
[1747677099850,3.97289315,2517.1,2516.7,8.355]
[1747677100045,3.97289315,2517.1,2516.6,3.97350123]
[1747677100046,3.97266804,2517.2,2516.4,4.09407226]
[1747677100271,0.55,2517.0,2515.8,25.512]
[1747677100457,3.97455107,2516.1,2515.8,28.31035744]
[1747677100642,3.97329942,2516.8,2515.8,28.31035744]
[1747677100643,0.04967905,2516.7,2515.8,28.31035744]
[1747677100987,0.04967905,2516.7,2515.9,8.0]
[1747677101196,3.97417687,2516.3,2515.9,8.0]
[1747677101480,3.97424881,2516.2,2515.9,8.0]
[1747677101636,3.97424881,2516.2,2515.9,11.81924965]
[1747677102186,3.9738696,2516.5,2515.9,8.0]
[1747677102478,3.9736204,2516.6,2515.9,8.0]
[1747677102479,3.97456279,2516.0,2515.9,8.0]
[1747677102674,3.97456279,2516.0,2515.9,16.355]
[1747677103376,0.7054,2517.1,2515.9,16.355]
[1747677103573,3.97378315,2516.5,2516.1,8.0]
[1747677103874,3.97370474,2516.6,2516.1,11.97436131]
[1747677104075,3.9738486,2516.5,2516.2,0.9375]
[1747677104274,3.97370474,2516.6,2516.2,0.9375]
[1747677104476,3.97374403,2516.6,2516.2,2.56382052]
[1747677104675,3.97329942,2516.8,2516.2,0.9375]
[1747677104854,3.97401061,2516.4,2516.3,8.35]
[1747677105460,3.97408894,2516.3,2516.2,0.9375]
[1747677105661,3.97408894,2516.3,2516.2,9.2875]
[1747677106061,3.97401689,2516.4,2516.2,9.2875]
[1747677106267,3.97345023,2516.8,2516.4,8.0]
[1747677106472,3.97339082,2516.8,2516.4,8.0]
[1747677106661,3.97346528,2516.7,2516.3,8.0]
[1747677106863,3.97551085,2515.4,2515.3,0.44290246]
[1747677107367,3.97524324,2515.6,2515.3,0.44290246]
[1747677107571,3.97543106,2515.5,2515.3,0.44290246]
[1747677107743,3.97455255,2516.1,2515.4,8.349]
[1747677107944,3.97522953,2515.6,2515.4,8.349]
[1747677108581,3.97445496,2516.1,2515.4,8.349]
[1747677108879,3.9746613,2516.0,2515.5,11.97529424]
[1747677109077,3.97405376,2516.4,2515.4,16.349]
[1747677109078,0.04968645,2516.3,2515.4,16.349]
[1747677109279,3.97480675,2515.9,2515.4,20.3244344]
[1747677109485,3.97437931,2516.2,2515.7,3.97494241]
[1747677109670,0.7054,2516.8,2515.7,3.97503676]
[1747677109873,4.67870477,2516.8,2515.8,3.9747481]
[1747677110071,0.7054,2516.8,2515.9,16.349]
[1747677110383,0.7054,2516.8,2516.0,8.349]
[1747677110384,3.97450688,2516.1,2516.0,8.349]
[1747677110946,3.97461276,2516.0,2515.6,8.8763]
[1747677111156,3.97473147,2515.9,2515.7,8.35]
[1747677111378,3.9746381,2516.0,2515.7,8.35]
[1747677111546,3.97415213,2516.3,2515.8,8.0]
[1747677111757,3.97441349,2516.1,2515.8,8.0]
[1747677112087,3.97375347,2516.6,2515.8,8.0]
[1747677112088,3.97459341,2516.0,2515.8,8.0]
[1747677112264,3.97449626,2516.1,2515.8,8.0]
[1747677112648,3.97430198,2516.2,2515.8,8.0]
[1747677112853,3.97447885,2516.1,2515.8,8.0]
[1747677113053,3.97402693,2516.4,2515.8,8.0]
[1747677113486,3.97457205,2516.0,2515.8,8.0]
[1747677113787,3.9744918,2516.1,2515.8,8.0]
[1747677113987,3.9744918,2516.1,2515.8,10.92057034]
[1747677114400,3.97379802,2516.5,2515.8,10.92057034]
[1747677114607,3.97450096,2516.1,2515.8,10.92057034]
[1747677114774,3.97450096,2516.1,2515.8,8.0]
[1747677115376,3.97433217,2516.2,2515.8,11.97486061]
[1747677115803,3.97433217,2516.2,2515.8,8.0]
[1747677116723,0.7062,2517.2,2516.1,3.97440483]
[1747677116874,0.7062,2517.2,2516.5,8.0]
[1747677116875,3.97332336,2516.8,2516.5,8.0]
[1747677117074,3.97347403,2516.7,2516.4,8.0]
[1747677117402,3.9733732,2516.8,2516.4,8.0]
[1747677117789,3.97317578,2516.9,2516.4,11.97382505]
[1747677117990,3.97312503,2517.0,2516.5,4.90839234]
[1747677118191,0.7062,2517.5,2516.5,3.01691701]
[1747677118484,0.7062,2517.5,2517.0,0.9347]
[1747677118485,3.97228063,2517.5,2517.0,0.9347]
[1747677118689,3.97214691,2517.6,2517.1,8.35]
[1747677118899,3.97214691,2517.6,2517.2,5.26558139]
[1747677119101,0.46976389,2517.9,2517.2,5.26558139]
[1747677119308,0.33129383,2517.8,2517.3,8.0]
[1747677119511,3.97211113,2517.6,2517.3,16.349]
[1747677119709,3.97220238,2517.5,2517.3,16.349]
[1747677119910,3.97235242,2517.4,2517.3,16.349]
[1747677120112,3.97225858,2517.5,2517.3,16.349]
[1747677120738,3.97212489,2517.6,2517.3,16.349]
[1747677121035,3.97229762,2517.5,2517.3,16.349]
[1747677121231,0.33129383,2517.8,2517.3,17.9839]
[1747677121518,3.97189373,2517.7,2517.3,9.6349]
[1747677121693,3.97204592,2517.6,2517.4,8.349]
[1747677122223,0.33129383,2517.8,2517.4,12.32126105]
[1747677122424,0.33129383,2517.8,2517.5,8.8727]
[1747677122628,0.33129383,2517.8,2517.7,8.0]
[1747677122939,3.97061743,2518.5,2517.7,8.0]
[1747677123220,3.9714376,2518.0,2517.7,8.0]
[1747677123595,3.97169042,2517.9,2517.8,16.348]
[1747677123785,0.7062,2518.7,2517.8,16.348]
[1747677123982,3.97086804,2518.4,2518.0,0.9151]
[1747677124217,3.97103908,2518.3,2518.0,8.9151]
[1747677124421,3.97109046,2518.2,2518.0,0.9151]
[1747677124824,3.97109046,2518.2,2518.1,8.348]
[1747677125728,3.97051636,2518.6,2518.0,8.346]
[1747677125896,3.97124816,2518.1,2518.0,8.346]
[1747677126096,0.04964151,2518.2,2518.0,8.346]
[1747677126297,3.97124816,2518.1,2518.0,8.346]
[1747677126744,3.97112113,2518.2,2517.5,17.154]
[1747677126948,3.9715636,2517.9,2517.8,8.346]
[1747677127539,3.97203686,2517.6,2517.5,17.154]
[1747677127740,3.97203686,2517.6,2517.5,33.5]
[1747677128458,3.97203686,2517.6,2517.3,0.892]
[1747677128459,3.97172134,2517.8,2516.9,0.20790293]
[1747677128753,3.97172134,2517.8,2517.1,8.0]
[1747677128754,3.97266804,2517.2,2517.1,8.0]
[1747677128961,0.7062,2517.8,2517.0,8.346]
[1747677128962,3.97285637,2517.1,2517.0,8.346]
[1747677129119,3.97285637,2517.1,2517.0,16.346]
[1747677129319,3.97285637,2517.1,2517.0,8.346]
[1747677129520,3.97285637,2517.1,2517.0,16.346]
[1747677129719,3.97278341,2517.2,2517.1,8.0]
[1747677130121,3.97282587,2517.1,2517.0,8.0]
[1747677130323,0.7062,2517.8,2517.0,16.346]
[1747677130324,3.97258664,2517.3,2517.0,16.346]
[1747677130660,0.7062,2517.8,2517.0,16.346]
[1747677130661,3.97282587,2517.1,2517.0,16.346]
[1747677130857,3.97298371,2517.0,2516.9,25.496]
[1747677131468,3.97274491,2517.2,2516.9,25.496]
[1747677131754,3.97266732,2517.3,2517.0,8.9518]
[1747677131955,3.97268182,2517.2,2517.0,8.9518]
[1747677132158,3.97282587,2517.1,2517.0,8.0]
[1747677132361,3.97282587,2517.1,2517.0,8.346]
[1747677133034,3.97298371,2517.0,2516.9,17.15]
[1747677133233,3.97298371,2517.0,2516.9,17.48167094]
[1747677133539,3.97203686,2517.6,2516.9,17.48167094]
[1747677133835,3.97298371,2517.0,2516.9,17.48167094]
[1747677134252,3.97298371,2517.0,2516.9,25.82867094]
[1747677134581,3.97298371,2517.0,2516.9,25.497]
[1747677134969,3.97298371,2517.0,2516.9,17.15]
[1747677135173,3.97298371,2517.0,2516.9,25.497]
[1747677135370,3.97298371,2517.0,2516.9,17.15]
[1747677136683,0.7062,2517.1,2516.7,8.347]
[1747677136978,3.9734573,2516.7,2516.6,8.347]
[1747677137487,3.97397448,2516.4,2516.2,18.24079797]
[1747677137696,3.97397448,2516.4,2516.3,16.347]
[1747677137850,3.97386773,2516.5,2516.3,16.347]
[1747677138174,3.97393101,2516.4,2516.3,16.347]
[1747677138755,3.97375523,2516.6,2516.3,16.347]
[1747677138955,3.97235242,2517.4,2516.6,8.8867]
[1747677139155,3.97250033,2517.4,2516.9,3.97309499]
[1747677139379,4.67840571,2517.5,2517.1,0.8867]
[1747677139380,3.97233891,2517.5,2517.1,0.8867]
[1747677139587,4.67759539,2518.1,2517.1,3.00737103]
[1747677139804,0.7062,2518.1,2517.2,8.0]
[1747677139965,3.97232049,2517.5,2517.2,8.0]
[1747677140368,3.97227809,2517.5,2517.2,8.0]
[1747677140606,3.97292264,2517.1,2516.9,8.347]
[1747677140906,3.97252575,2517.3,2516.9,9.27037]
[1747677141211,0.7062,2517.8,2517.0,8.0]
[1747677141363,3.97247723,2517.4,2517.0,8.0]
[1747677141565,3.97259033,2517.3,2517.0,8.0]
[1747677141790,3.97259033,2517.3,2517.0,10.60654312]
[1747677142198,3.97269266,2517.2,2517.0,10.60654312]
[1747677142409,3.97282587,2517.1,2517.0,10.60654312]
[1747677142897,3.97282587,2517.1,2516.9,8.92337]
[1747677143208,3.97282587,2517.1,2517.0,8.347]
[1747677143403,3.97298371,2517.0,2516.9,8.0]
[1747677143608,3.97314156,2516.9,2516.8,0.8867]
[1747677143774,3.97305636,2517.0,2516.9,8.347]
[1747677143975,3.97314156,2516.9,2516.8,0.8867]
[1747677144173,3.97314156,2516.9,2516.8,9.2337]
[1747677144601,3.97314156,2516.9,2516.8,8.347]
[1747677145103,3.97314156,2516.9,2516.5,8.9426]
[1747677145307,3.97329942,2516.8,2516.7,8.0]
[1747677145882,3.97322248,2516.9,2516.7,8.347]
[1747677146411,3.97329942,2516.8,2516.7,8.347]
[1747677146974,3.97318938,2516.9,2516.7,8.347]
[1747677147310,3.97291353,2517.1,2516.8,8.0]
[1747677147509,3.97305881,2517.0,2516.8,8.0]
[1747677148315,3.97314156,2516.9,2516.8,8.0]
[1747677148514,3.9730678,2517.0,2516.8,16.347]
[1747677148879,3.97314156,2516.9,2516.5,4.87773776]
[1747677149075,3.97337063,2516.8,2516.6,16.347]
[1747677149505,3.97361519,2516.6,2516.5,0.9426]
[1747677149693,3.97361519,2516.6,2516.5,9.2896]
[1747677149892,3.97361519,2516.6,2516.5,17.2896]
[1747677150112,0.3024,2517.3,2516.5,17.2896]
[1747677150113,3.97319181,2516.9,2516.5,17.2896]
[1747677150316,3.97266804,2517.2,2516.6,11.97358836]
[1747677150515,3.97299132,2517.0,2516.6,11.97358836]
[1747677150706,3.97320898,2516.9,2516.6,8.0]
[1747677151592,3.97251022,2517.3,2516.6,8.0]
[1747677151792,3.97323907,2516.9,2516.6,8.0]
[1747677151994,3.9734573,2516.7,2516.5,0.9426]
[1747677152195,3.97393101,2516.4,2516.3,8.45203508]
[1747677152395,3.97393101,2516.4,2516.3,16.79903508]
[1747677152704,0.3024,2517.0,2516.3,16.347]
[1747677152919,3.97361279,2516.7,2516.3,18.13786449]
[1747677153112,0.3024,2517.5,2516.5,8.0]
[1747677153420,3.97315351,2516.9,2516.4,11.97384449]
[1747677153623,3.97315351,2516.9,2516.5,0.7576]
[1747677153797,4.2747406,2517.5,2516.5,4.69273776]
[1747677154130,0.3024,2517.9,2516.8,3.93513776]
[1747677154336,3.97137959,2518.1,2517.3,8.0]
[1747677154503,3.97219463,2517.5,2517.4,9.1411]
[1747677154831,3.97212891,2517.6,2517.4,9.1411]
[1747677155031,3.97195131,2517.7,2517.4,9.1411]
[1747677155333,0.77179993,2518.2,2517.4,9.1411]
[1747677155640,3.97178691,2517.8,2517.5,8.0]
[1747677155818,3.97189645,2517.7,2517.5,8.0]
[1747677156020,3.97203686,2517.6,2517.5,8.0]
[1747677156237,3.97219463,2517.5,2517.4,0.7941]
[1747677156535,3.97219463,2517.5,2517.4,17.1411]